Workbook

Sheet Menu
C2: SUBSI-DANCE
D3: preliminary version

Sheet List1
A1: rm [kg/m3] = | B1: 3300 | C1: l/2 [m] = | D1: 150000
A2: rw [kg/m3] = | B2: 1030 | C2: D [Nm] = | D2: 3.982222222e+23
A3: g [m/s2] = | B3: 9.80665 | G3: Age | H3: D SL [km] | I3: W d [km]
A4: Unit (oldest first) | B4: Top [km] | C4: Base [km] | D4: Thick. | E4: C [km-1] | F4: Fo | G4: 354 | J4: r sg[kg/m3]
A5: 1 | B5: 4 | C5: 5 | D5: =C5-B5 -> 1 | E5: 0.45 | F5: 0.4 | G5: 342
A6: 2 | B6: 3 | C6: 4 | D6: =C6-B6 -> 1 | E6: 0.45 | F6: 0.4 | G6: 327
A7: 3 | B7: 2 | C7: 3 | D7: =C7-B7 -> 1 | E7: 0.45 | F7: 0.4 | G7: 319
A8: 4 | B8: 1 | C8: 2 | D8: =C8-B8 -> 1 | E8: 0.45 | F8: 0.4 | G8: 315
A9: 5 | B9: 0 | C9: 1 | D9: =C9-B9 -> 1 | E9: 0.45 | F9: 0.4 | G9: 314.214996

Sheet List2
A1: Decompacted depth versus time
B3: Age
A4: Unit | B4: 354 | C4: 342 | D4: 327 | E4: 319 | F4: 315 | G4: 314.214996
A5: 1 | B5: 0 | C5: =List2!C6+List1!$C5-List1!$B5-List1!$F5/List1!$E5*(EXP(-List1!$E5*List1!$B5)-EXP(-List1!$E5*List1!$C5))+List1!$F5/List1!$E5*(EXP(-List1!$E5*List2!C6)-EXP(-List1!$E5*List2!C5)) -> 1.35186298 | D5: =List2!D6+List1!$C5-List1!$B5-List1!$F5/List1!$E5*(EXP(-List1!$E5*List1!$B5)-EXP(-List1!$E5*List1!$C5))+List1!$F5/List1!$E5*(EXP(-List1!$E5*List2!D6)-EXP(-List1!$E5*List2!D5)) -> 2.458063735 | E5: =List2!E6+List1!$C5-List1!$B5-List1!$F5/List1!$E5*(EXP(-List1!$E5*List1!$B5)-EXP(-List1!$E5*List1!$C5))+List1!$F5/List1!$E5*(EXP(-List1!$E5*List2!E6)-EXP(-List1!$E5*List2!E5)) -> 3.431406834 | F5: =List2!F6+List1!$C5-List1!$B5-List1!$F5/List1!$E5*(EXP(-List1!$E5*List1!$B5)-EXP(-List1!$E5*List1!$C5))+List1!$F5/List1!$E5*(EXP(-List1!$E5*List2!F6)-EXP(-List1!$E5*List2!F5)) -> 4.286645578 | G5: =List2!G6+List1!$C5-List1!$B5-List1!$F5/List1!$E5*(EXP(-List1!$E5*List1!$B5)-EXP(-List1!$E5*List1!$C5))+List1!$F5/List1!$E5*(EXP(-List1!$E5*List2!G6)-EXP(-List1!$E5*List2!G5)) -> 4.999999871
A6: 2 | B6: 0 | C6: 0 | D6: =List2!D7+List1!$C6-List1!$B6-List1!$F6/List1!$E6*(EXP(-List1!$E6*List1!$B6)-EXP(-List1!$E6*List1!$C6))+List1!$F6/List1!$E6*(EXP(-List1!$E6*List2!D7)-EXP(-List1!$E6*List2!D6)) -> 1.313088289 | E6: =List2!E7+List1!$C6-List1!$B6-List1!$F6/List1!$E6*(EXP(-List1!$E6*List1!$B6)-EXP(-List1!$E6*List1!$C6))+List1!$F6/List1!$E6*(EXP(-List1!$E6*List2!E7)-EXP(-List1!$E6*List2!E6)) -> 2.368214592 | F6: =List2!F7+List1!$C6-List1!$B6-List1!$F6/List1!$E6*(EXP(-List1!$E6*List1!$B6)-EXP(-List1!$E6*List1!$C6))+List1!$F6/List1!$E6*(EXP(-List1!$E6*List2!F7)-EXP(-List1!$E6*List2!F6)) -> 3.264459336 | G6: =List2!G7+List1!$C6-List1!$B6-List1!$F6/List1!$E6*(EXP(-List1!$E6*List1!$B6)-EXP(-List1!$E6*List1!$C6))+List1!$F6/List1!$E6*(EXP(-List1!$E6*List2!G7)-EXP(-List1!$E6*List2!G6)) -> 4
A7: 3 | B7: 0 | C7: 0 | D7: 0 | E7: =List2!E8+List1!$C7-List1!$B7-List1!$F7/List1!$E7*(EXP(-List1!$E7*List1!$B7)-EXP(-List1!$E7*List1!$C7))+List1!$F7/List1!$E7*(EXP(-List1!$E7*List2!E8)-EXP(-List1!$E7*List2!E7)) -> 1.251885304 | F7: =List2!F8+List1!$C7-List1!$B7-List1!$F7/List1!$E7*(EXP(-List1!$E7*List1!$B7)-EXP(-List1!$E7*List1!$C7))+List1!$F7/List1!$E7*(EXP(-List1!$E7*List2!F8)-EXP(-List1!$E7*List2!F7)) -> 2.226112042 | G7: =List2!G8+List1!$C7-List1!$B7-List1!$F7/List1!$E7*(EXP(-List1!$E7*List1!$B7)-EXP(-List1!$E7*List1!$C7))+List1!$F7/List1!$E7*(EXP(-List1!$E7*List2!G8)-EXP(-List1!$E7*List2!G7)) -> 3
A8: 4 | B8: 0 | C8: 0 | D8: 0 | E8: 0 | F8: =List2!F9+List1!$C8-List1!$B8-List1!$F8/List1!$E8*(EXP(-List1!$E8*List1!$B8)-EXP(-List1!$E8*List1!$C8))+List1!$F8/List1!$E8*(EXP(-List1!$E8*List2!F9)-EXP(-List1!$E8*List2!F8)) -> 1.154880231 | G8: =List2!G9+List1!$C8-List1!$B8-List1!$F8/List1!$E8*(EXP(-List1!$E8*List1!$B8)-EXP(-List1!$E8*List1!$C8))+List1!$F8/List1!$E8*(EXP(-List1!$E8*List2!G9)-EXP(-List1!$E8*List2!G8)) -> 2
A9: 5 | B9: 0 | C9: 0 | D9: 0 | E9: 0 | F9: 0 | G9: =List2!G10+List1!$C9-List1!$B9-List1!$F9/List1!$E9*(EXP(-List1!$E9*List1!$B9)-EXP(-List1!$E9*List1!$C9))+List1!$F9/List1!$E9*(EXP(-List1!$E9*List2!G10)-EXP(-List1!$E9*List2!G9)) -> 1

Sheet Graf1

Sheet List3
A1: Backstripped porosity
B3: Age
A4: Unit | B4: 354 | C4: 342 | D4: 327 | E4: 319 | F4: 315 | G4: 314.214996
A5: 1 | B5: 0 | C5: =List1!$F5/List1!$E5*(EXP(-List1!$E5*List2!C6)-EXP(-List1!$E5*List2!C5))/(List2!C5 - List2!C6) -> 0.299665818 | D5: =List1!$F5/List1!$E5*(EXP(-List1!$E5*List2!D6)-EXP(-List1!$E5*List2!D5))/(List2!D5 - List2!D6) -> 0.1731212598 | E5: =List1!$F5/List1!$E5*(EXP(-List1!$E5*List2!E6)-EXP(-List1!$E5*List2!E5))/(List2!E5 - List2!E6) -> 0.1095158362 | F5: =List1!$F5/List1!$E5*(EXP(-List1!$E5*List2!F6)-EXP(-List1!$E5*List2!F5))/(List2!F5 - List2!F6) -> 0.07379319325 | G5: =List1!$F5/List1!$E5*(EXP(-List1!$E5*List2!G6)-EXP(-List1!$E5*List2!G5))/(List2!G5 - List2!G6) -> 0.0532441469
A6: 2 | B6: 0 | C6: 0 | D6: =List1!$F6/List1!$E6*(EXP(-List1!$E6*List2!D7)-EXP(-List1!$E6*List2!D6))/(List2!D6 - List2!D7) -> 0.3020297527 | E6: =List1!$F6/List1!$E6*(EXP(-List1!$E6*List2!E7)-EXP(-List1!$E6*List2!E6))/(List2!E6 - List2!E7) -> 0.1790087673 | F6: =List1!$F6/List1!$E6*(EXP(-List1!$E6*List2!F7)-EXP(-List1!$E6*List2!F6))/(List2!F6 - List2!F7) -> 0.1173506558 | G6: =List1!$F6/List1!$E6*(EXP(-List1!$E6*List2!G7)-EXP(-List1!$E6*List2!G6))/(List2!G6 - List2!G7) -> 0.08350344215
A7: 3 | B7: 0 | C7: 0 | D7: 0 | E7: =List1!$F7/List1!$E7*(EXP(-List1!$E7*List2!E8)-EXP(-List1!$E7*List2!E7))/(List2!E7 - List2!E8) -> 0.3058145734 | F7: =List1!$F7/List1!$E7*(EXP(-List1!$E7*List2!F8)-EXP(-List1!$E7*List2!F7))/(List2!F7 - List2!F8) -> 0.1887465204 | G7: =List1!$F7/List1!$E7*(EXP(-List1!$E7*List2!G8)-EXP(-List1!$E7*List2!G7))/(List2!G7 - List2!G8) -> 0.1309594659
A8: 4 | B8: 0 | C8: 0 | D8: 0 | E8: 0 | F8: =List1!$F8/List1!$E8*(EXP(-List1!$E8*List2!F9)-EXP(-List1!$E8*List2!F8))/(List2!F8 - List2!F9) -> 0.3119505796 | G8: =List1!$F8/List1!$E8*(EXP(-List1!$E8*List2!G9)-EXP(-List1!$E8*List2!G8))/(List2!G8 - List2!G9) -> 0.2053853261
A9: 5 | B9: 0 | C9: 0 | D9: 0 | E9: 0 | F9: 0 | G9: =List1!$F9/List1!$E9*(EXP(-List1!$E9*List2!G10)-EXP(-List1!$E9*List2!G9))/(List2!G9 - List2!G10) -> 0.3221083097

Sheet List4
A1: Backstripped density
B3: Age
A4: Unit | B4: 354 | C4: 342 | D4: 327 | E4: 319 | F4: 315 | G4: 314.214996
A5: 1 | B5: 0 | C5: 308.6557926 | D5: 178.3148976 | E5: 112.8013113 | F5: 76.00698905 | G5: 54.84146984
A6: 2 | B6: 0 | C6: 0 | D6: 311.0906453 | E6: 184.3790303 | F6: 120.8711755 | G6: 86.00854542
A7: 3 | B7: 0 | C7: 0 | D7: 0 | E7: 314.9890106 | F7: 194.4089161 | G7: 134.8882498
A8: 4 | B8: 0 | C8: 0 | D8: 0 | E8: 0 | F8: 321.309097 | G8: 211.5468859
A9: 5 | B9: 0 | C9: 0 | D9: 0 | E9: 0 | F9: 0 | G9: 331.771559
A11: Bulk density | C11: 308.6557926 | D11: 249.2431965 | E11: 209.8519175 | F11: 182.5506872 | G11: 163.811342

Sheet List5
A1: Corrected subsidence
A6: 1. Corrected depths [km]
B8: Age
B9: 354 | C9: 342 | D9: 327 | E9: 319 | F9: 315 | G9: 314.214996
A10: Total sub. | B10: 0 | C10: 1.35186298 | D10: 2.458063735 | E10: 3.431406834 | F10: 4.286645578 | G10: 5
A11: Tectonic s. | B11: 0 | C11: 1.781448236 | D11: 3.303504257 | E11: 4.671169713 | F11: 5.886960489 | G11: 6.907904533
A12: + Water depth | B12: 0 | C12: 1.781448236 | D12: 3.303504257 | E12: 4.671169713 | F12: 5.886960489 | G12: 6.907904533
A13: + Flex. support | B13: 0 | C13: 1.470795834 | D13: 2.695471649 | E13: 3.782765478 | F13: 4.743051751 | G13: 5.546464028
A15: 2. Subsidence rates [km/ma]
B17: Age
B18: 354 | C18: 342 | D18: 327 | E18: 319 | F18: 315 | G18: 314.214996
A19: Total sub. | C19: 0.1126552484 | D19: 0.07374671699 | E19: 0.1216678873 | F19: 0.2138096859 | G19: 0.9087271178
A20: Tectonic s. | C20: 0.1484540197 | D20: 0.1014704014 | E20: 0.1709581819 | F20: 0.3039476941 | G20: 1.300559034
A21: + Water depth | C21: 0.1484540197 | D21: 0.1014704014 | E21: 0.1709581819 | F21: 0.3039476941 | G21: 1.300559034
A22: + Flex. support | C22: 0.1225663195 | D22: 0.08164505434 | E22: 0.1359117287 | F22: 0.2400715681 | G22: 1.023449915

Sheet Graf2

Sheet Rates
B3: Age | C3: Total subs. rates | D3: Tectonic subs. rates | E3: +water depth corrected rates | F3: +flex. support corrected rates
B4: 354
B5: 354 | C5: 0.1126552484 | D5: 0.1484540197 | E5: 0.1484540197 | F5: 0.1225663195
B6: 342 | C6: 0.1126552484 | D6: 0.1484540197 | E6: 0.1484540197 | F6: 0.1225663195
B7: 342 | C7: 0.07374671699 | D7: 0.1014704014 | E7: 0.1014704014 | F7: 0.08164505434
B8: 327 | C8: 0.07374671699 | D8: 0.1014704014 | E8: 0.1014704014 | F8: 0.08164505434
B9: 327 | C9: 0.1216678873 | D9: 0.1709581819 | E9: 0.1709581819 | F9: 0.1359117287
B10: 319 | C10: 0.1216678873 | D10: 0.1709581819 | E10: 0.1709581819 | F10: 0.1359117287
B11: 319 | C11: 0.2138096859 | D11: 0.3039476941 | E11: 0.3039476941 | F11: 0.2400715681
B12: 315 | C12: 0.2138096859 | D12: 0.3039476941 | E12: 0.3039476941 | F12: 0.2400715681
B13: 315 | C13: 0.9087271178 | D13: 1.300559034 | E13: 1.300559034 | F13: 1.023449915
B14: 314.214996 | C14: 0.9087271178 | D14: 1.300559034 | E14: 1.300559034 | F14: 1.023449915
B15: 314.214996

Sheet Graf3

Sheet List9

Sheet List10

Sheet List11

Sheet List12

Sheet List13

Sheet List14

Sheet List15

Sheet List16
